fUSD/lending_fUSD_20240301
["ID","MTS","AMOUNT","RATE_DAILY","PERIOD"]
[315904599,1709260661402,-190.909855,0.00021918,2]
[315904600,1709260661426,-190.909855,0.00021918,2]
[315904601,1709260661448,-190.909855,0.00021918,2]
[315904602,1709260661470,-211.71089,0.00021918,2]
[315904603,1709260661491,-151.0,0.00021918,2]
[315904604,1709260661513,-201.782439,0.00021918,2]
[315904605,1709260661535,-155.77,0.00021918,2]
[315904606,1709260661557,-716.399258,0.00021918,2]
[315904607,1709260661579,-716.399258,0.00021918,2]
[315904608,1709260661601,-716.399258,0.00021918,2]
[315904609,1709260661622,-716.399258,0.00021918,2]
[315904610,1709260661645,-716.399258,0.00021918,2]
[315904611,1709260661667,-199.581029,0.00021918,2]
[315904612,1709260661688,-199.581029,0.00021918,2]
[315904613,1709260661709,-199.581029,0.00021918,2]
[315904614,1709260661731,-199.581029,0.00021918,2]
[315904615,1709260661752,-199.581029,0.00021918,2]
[315904616,1709260661773,-199.581029,0.00021918,2]
[315904617,1709260661795,-199.581029,0.00021918,2]
[315904618,1709260661818,-199.581029,0.00021918,2]
[315904619,1709260661839,-199.581029,0.00021918,2]
[315904620,1709260661859,-716.399258,0.00021918,2]
[315904621,1709260661881,-199.581029,0.00021918,2]
[315904622,1709260661902,-716.399258,0.00021918,2]
[315904623,1709260661924,-716.399258,0.00021918,2]
[315904624,1709260661945,-716.399258,0.00021918,2]
[315904625,1709260661967,-716.399258,0.00021918,2]
[315904626,1709260661992,-506.570385,0.00021918,2]
[315904627,1709260662013,-506.570385,0.00021918,2]
[315904628,1709260662035,-506.570385,0.00021918,2]
[315904629,1709260662058,-506.570385,0.00021918,2]
[315904630,1709260662079,-506.570385,0.00021918,2]
[315904631,1709260662101,-506.570385,0.00021918,2]
[315904632,1709260662123,-506.570385,0.00021918,2]
[315904633,1709260662145,-506.570385,0.00021918,2]
[315904634,1709260662168,-506.570385,0.00021918,2]
[315904635,1709260662191,-506.570385,0.00021918,2]
[315904636,1709260662213,-183.281933,0.00021918,2]
[315904637,1709260662235,-151.0,0.00021918,2]
[315904638,1709260662260,-151.0,0.00021918,2]
[315904639,1709260662282,-151.0,0.00021918,2]
[315904640,1709260662305,-151.0,0.00021918,2]
[315904641,1709260662329,-151.0,0.00021918,2]
[315904642,1709260662350,-151.0,0.00021918,2]
[315904643,1709260662376,-154.302091,0.00021918,2]
[315904644,1709260662399,-1002.344212,0.00021918,2]
[315904645,1709260662421,-1002.344212,0.00021918,2]
[315904646,1709260662442,-1002.344212,0.00021918,2]
[315904647,1709260662464,-1002.344212,0.00021918,2]
[315904648,1709260662486,-1002.344212,0.00021918,2]
[315904649,1709260662508,-1002.344212,0.00021918,2]
[315904650,1709260662530,-1002.344212,0.00021918,2]
[315904651,1709260662551,-1002.344212,0.00021918,2]
[315904652,1709260662572,-1002.344212,0.00021918,2]
[315904653,1709260662593,-1002.344212,0.00021918,2]
[315904654,1709260662618,-155.0,0.00021918,2]
[315904655,1709260662640,-12465.99368389,0.0002192,2]
[315904656,1709260662661,-599.99900275,0.00021963,2]
[315904657,1709260662683,-933.164301,0.00021968,2]
[315904658,1709260662704,-78030.308175,0.00021968,2]
[315904659,1709260662726,-64248.523021,0.00021968,2]
[315904660,1709260662749,-151.0,0.00021968,7]
[315904661,1709260662771,-500.460623,0.00021968,3]
[315904662,1709260662793,-500.460623,0.00021968,3]
[315904663,1709260662816,-190.909855,0.00021968,7]
[315904664,1709260662839,-190.909855,0.00021968,7]
[315904665,1709260662859,-716.399258,0.00021968,7]
[315904666,1709260662881,-199.581029,0.00021968,7]
[315904667,1709260662902,-199.581029,0.00021968,7]
[315904668,1709260662923,-716.399258,0.00021968,7]
[315904669,1709260662944,-506.570385,0.00021968,7]
[315904670,1709260662965,-506.570385,0.00021968,7]
[315904671,1709260662987,-175.257145,0.00021968,7]
[315904672,1709260663008,-1002.344212,0.00021968,7]
[315904673,1709260663029,-1002.344212,0.00021968,7]
[315904674,1709260663053,-165.0,0.00022,2]
[315904675,1709260663842,847.41,0.00021917,2]
[315904676,1709260665716,500.0,0.00021917,2]
[315904677,1709260666195,500.0,0.00021917,2]
[315904678,1709260667637,500.0,0.00021917,2]
[315904679,1709260668562,500.0,0.00021917,2]
[315904680,1709260668588,170.98924085,0.00021912,2]
[315904681,1709260668759,363.90797229,0.00021916,2]
[315904682,1709260669241,500.0,0.00021917,2]
[315904683,1709260669465,155.0,0.00021916,2]
[315904684,1709260670006,500.0,0.00021917,2]
[315904685,1709260670320,337.06761057,0.00021916,2]
[315904686,1709260670348,500.0,0.00021917,2]
[315904687,1709260673262,508.39,0.00021917,2]
[315904688,1709260673651,1172.79,0.00021917,2]
[315904689,1709260673724,500.0,0.00021917,2]
[315904690,1709260674790,500.0,0.00021917,2]
[315904691,1709260674863,804.5,0.00021917,2]
[315904692,1709260675127,2152.21,0.00021917,2]
[315904693,1709260675700,500.0,0.00021917,2]
[315904694,1709260675948,919.35,0.00021917,2]
[315904695,1709260676429,4892.11,0.00021917,2]
[315904696,1709260679297,500.0,0.00021917,2]
[315904697,1709260681041,2296.03,0.00021917,2]
[315904698,1709260681808,500.0,0.00021917,2]
[315904699,1709260681839,500.0,0.00021917,2]
[315904700,1709260683169,439.24770787,0.00021698,2]
[315904701,1709260683450,1866.59,0.00021917,2]
[315904702,1709260684718,-500.0,0.00021917,2]
[315904703,1709260684740,-500.0,0.00021917,2]
[315904704,1709260684762,-242.3928473,0.00022,4]
[315904705,1709260684783,-167.46160559,0.00022,2]
[315904706,1709260684804,-214.43013506,0.00022,4]
[315904707,1709260684829,-3281.64,0.00022,2]
[315904708,1709260684851,-1476.61175551,0.00022,2]
[315904709,1709260684873,-1237.26,0.00022,2]
[315904710,1709260684894,-2000.0,0.00022,7]
[315904711,1709260684915,-270.28460514,0.00022,2]
[315904712,1709260684937,-612.36980932,0.00022,2]
[315904713,1709260684959,-155.13434891,0.00022,2]
[315904714,1709260684983,-2800.0,0.00022,3]
[315904715,1709260685004,-1029.92904421,0.00022,2]
[315904716,1709260685026,-2874.92,0.00022,2]
[315904717,1709260685055,-1000.0,0.00022,2]
[315904718,1709260685079,-1000.0,0.00022,2]
[315904719,1709260685101,-800.0,0.00022,2]
[315904720,1709260685124,-587.72061023,0.00022007,2]
[315904721,1709260685146,-12000.0,0.00022007,2]
[315904722,1709260685167,-12000.0,0.00022008,2]
[315904723,1709260685189,-155.0,0.00022009,2]
[315904724,1709260685213,-363.90797229,0.00022009,2]
[315904725,1709260685235,-12000.0,0.00022009,2]
[315904726,1709260685256,-12000.0,0.00022009,2]
[315904727,1709260685279,-12000.0,0.0002201,2]
[315904728,1709260685303,-12000.0,0.0002201,2]
[315904729,1709260685325,-12000.0,0.00022011,2]
[315904730,1709260685349,-12000.0,0.00022011,2]
[315904731,1709260685372,-12000.0,0.00022011,2]
[315904732,1709260685395,-12000.0,0.00022012,2]
[315904733,1709260685421,-12000.0,0.00022013,2]
[315904734,1709260685445,-12000.0,0.00022013,2]
[315904735,1709260685468,-151.0,0.00022014,7]
[315904736,1709260685490,-500.460623,0.00022014,3]
[315904737,1709260685513,-500.460623,0.00022014,3]
[315904738,1709260685535,-716.399258,0.00022014,7]
[315904739,1709260685557,-199.581029,0.00022014,7]
[315904740,1709260685580,-199.581029,0.00022014,7]
[315904741,1709260685602,-716.399258,0.00022014,7]
[315904742,1709260685624,-506.570385,0.00022014,7]
[315904743,1709260685646,-506.570385,0.00022014,7]
[315904744,1709260685670,-1002.344212,0.00022014,7]
[315904745,1709260685692,-1002.344212,0.00022014,7]
[315904746,1709260685715,-12000.0,0.00022014,2]
[315904747,1709260685741,-12000.0,0.00022014,2]
[315904748,1709260685764,-12000.0,0.00022014,2]
[315904749,1709260685794,-12000.0,0.00022014,2]
[315904750,1709260685816,-12000.0,0.00022015,2]
[315904751,1709260685840,-12000.0,0.00022017,2]
[315904752,1709260685861,-12000.0,0.00022017,2]
[315904753,1709260685883,-12000.0,0.00022018,2]
[315904754,1709260685904,-12000.0,0.00022018,2]
[315904755,1709260685926,-12000.0,0.00022018,2]
[315904756,1709260685947,-12000.0,0.00022019,2]
[315904757,1709260685969,-12000.0,0.00022019,2]
[315904758,1709260685990,-12000.0,0.0002202,2]
[315904759,1709260686012,-5799.99,0.0002202,2]
[315904760,1709260686033,-12000.0,0.00022021,2]
[315904761,1709260686061,-12000.0,0.00022021,2]
[315904762,1709260686095,-12000.0,0.00022021,2]
[315904763,1709260686116,-12000.0,0.00022021,2]
[315904764,1709260686138,-12000.0,0.00022021,2]
[315904765,1709260686160,-500.460623,0.00022021,3]
[315904766,1709260686186,-500.460623,0.00022021,3]
[315904767,1709260686214,-716.399258,0.00022021,7]
[315904768,1709260686237,-199.581029,0.00022021,7]
[315904769,1709260686262,-199.581029,0.00022021,7]
[315904770,1709260686286,-716.399258,0.00022021,7]
[315904771,1709260686312,-506.570385,0.00022021,7]
[315904772,1709260686337,-506.570385,0.00022021,7]
[315904773,1709260686361,-1002.344212,0.00022021,7]
[315904774,1709260686386,-1002.344212,0.00022021,7]
[315904775,1709260686411,-151.0,0.00022023,7]
[315904776,1709260686435,-12000.0,0.00022023,2]
[315904777,1709260686459,-12000.0,0.00022023,2]
[315904778,1709260686491,-12000.0,0.00022023,2]
[315904779,1709260686515,-12000.0,0.00022023,2]
[315904780,1709260686539,-12000.0,0.00022024,2]
[315904781,1709260686564,-12000.0,0.00022024,2]
[315904782,1709260686590,-12000.0,0.00022024,2]
[315904783,1709260686616,-12000.0,0.00022026,2]
[315904784,1709260686647,-12000.0,0.00022027,2]
[315904785,1709260686673,-12000.0,0.00022028,2]
[315904786,1709260686702,-12000.0,0.00022028,2]
[315904787,1709260686737,-12000.0,0.0002203,2]
[315904788,1709260686765,-12000.0,0.0002203,2]
[315904789,1709260686791,-12000.0,0.0002203,2]
[315904790,1709260686816,-12465.99368389,0.0002203,2]
[315904791,1709260686846,-12000.0,0.00022031,2]
[315904792,1709260686868,-500.460623,0.00022031,3]
[315904793,1709260686891,-500.460623,0.00022031,3]
[315904794,1709260686915,-199.581029,0.00022031,7]
[315904795,1709260686937,-716.399258,0.00022031,7]
[315904796,1709260686960,-199.581029,0.00022031,7]
[315904797,1709260686984,-716.399258,0.00022031,7]
[315904798,1709260687007,-506.570385,0.00022031,7]
[315904799,1709260687031,-506.570385,0.00022031,7]
[315904800,1709260687056,-1002.344212,0.00022031,7]
[315904801,1709260687085,-1002.344212,0.00022031,7]
[315904802,1709260687109,-12000.0,0.00022032,2]
[315904803,1709260687134,-151.0,0.00022033,7]
[315904804,1709260687157,-12000.0,0.00022033,2]
[315904805,1709260687182,-12000.0,0.00022033,2]
[315904806,1709260687206,-12000.0,0.00022034,2]
[315904807,1709260687230,-12000.0,0.00022035,2]
[315904808,1709260687253,-12000.0,0.00022035,2]
[315904809,1709260687278,-12000.0,0.00022035,2]
[315904810,1709260687305,-12000.0,0.00022036,2]
[315904811,1709260687329,-12000.0,0.00022036,2]
[315904812,1709260687357,-12000.0,0.00022036,2]
[315904813,1709260687380,-12000.0,0.00022037,2]
[315904814,1709260687404,-12000.0,0.00022037,2]
[315904815,1709260687428,-12000.0,0.00022038,2]
[315904816,1709260687450,-12000.0,0.00022038,2]
[315904817,1709260687474,-12000.0,0.00022038,2]
[315904818,1709260687497,-500.460623,0.00022039,3]
[315904819,1709260687519,-500.460623,0.00022039,3]
[315904820,1709260687541,-199.581029,0.00022039,7]
[315904821,1709260687563,-716.399258,0.00022039,7]
[315904822,1709260687588,-199.581037,0.00022039,7]
[315904823,1709260687611,-716.399267,0.00022039,7]
[315904824,1709260687634,-506.570385,0.00022039,7]
[315904825,1709260687657,-506.570392,0.00022039,7]
[315904826,1709260687681,-1002.344212,0.00022039,7]
[315904827,1709260687705,-1002.344203,0.00022039,7]
[315904828,1709260687729,-12000.0,0.00022039,2]
[315904829,1709260687751,-12000.0,0.00022039,2]
[315904830,1709260687774,-2200.0,0.00022039,2]
[315904831,1709260687798,-12000.0,0.00022041,2]
[315904832,1709260687820,-12000.0,0.00022041,2]
[315904833,1709260687846,-12000.0,0.00022041,2]
[315904834,1709260687869,-151.0,0.00022041,7]
[315904835,1709260687892,-12000.0,0.00022042,2]
[315904836,1709260687915,-12000.0,0.00022042,2]
[315904837,1709260687939,-12000.0,0.00022042,2]
[315904838,1709260687961,-12000.0,0.00022044,2]
[315904839,1709260687984,-12000.0,0.00022044,2]
[315904840,1709260688008,-12000.0,0.00022045,2]
[315904841,1709260688030,-12000.0,0.00022046,2]
[315904842,1709260688053,-12000.0,0.00022046,2]
[315904843,1709260688076,-12000.0,0.00022046,2]
[315904844,1709260688102,-154.36,0.00022047,2]
[315904845,1709260688125,-12000.0,0.00022047,2]
[315904846,1709260688149,-12000.0,0.00022048,2]
[315904847,1709260688173,-500.460623,0.00022049,3]
[315904848,1709260688197,-500.460616,0.00022049,3]
[315904849,1709260688225,-12000.0,0.00022049,2]
[315904850,1709260688248,-12000.0,0.00022049,2]
[315904851,1709260688272,-12000.0,0.00022049,2]
[315904852,1709260688294,-151.0,0.0002205,7]
[315904853,1709260688318,-12000.0,0.0002205,2]
[315904854,1709260688342,-12000.0,0.0002205,2]
[315904855,1709260688364,-12000.0,0.0002205,2]
[315904856,1709260688388,-12000.0,0.0002205,2]
[315904857,1709260688412,-12000.0,0.00022051,2]
[315904858,1709260688438,-12000.0,0.00022051,2]
[315904859,1709260688462,-12000.0,0.00022053,2]
[315904860,1709260688486,-12000.0,0.00022053,2]
[315904861,1709260688512,-12000.0,0.00022054,2]
[315904862,1709260688537,-12000.0,0.00022054,2]
[315904863,1709260688561,-12000.0,0.00022054,2]
[315904864,1709260688584,-12000.0,0.00022055,2]
[315904865,1709260688607,-12000.0,0.00022056,2]
[315904866,1709260688630,-12000.0,0.00022056,2]
[315904867,1709260688653,-12000.0,0.00022056,2]
[315904868,1709260688678,-156.71,0.00022064,2]
[315904869,1709260688701,-5877.94966656,0.00022091,2]
[315904870,1709260688724,-100040.7594145,0.000221,2]
[315904871,1709260688747,-151.0,0.000221,7]
[315904872,1709260688773,-3805.76975292,0.000221,2]
[315904873,1709260689382,500.0,0.00021917,2]
[315904874,1709260691201,892.51,0.00021917,2]
[315904875,1709260691753,595.35,0.00021917,2]
[315904876,1709260692103,575.52,0.00021917,2]
[315904877,1709260692538,842.3,0.00021917,2]
[315904878,1709260692924,751.35,0.00021917,2]
[315904879,1709260693268,1454.56,0.00021917,2]
[315904880,1709260693658,500.0,0.00021917,2]
[315904881,1709260695194,2956.92,0.00021917,2]
[315904882,1709260696362,171.65391178,0.00022021,2]
[315904883,1709260697035,647.86,0.00021917,2]
[315904884,1709260701001,500.0,0.00021917,2]
[315904885,1709260701162,531.04,0.00021917,2]
[315904886,1709260702915,1166.23,0.00021917,2]
[315904887,1709260703237,500.0,0.00021917,2]
[315904888,1709260703311,751.90500993,0.00022099,2]
[315904889,1709260704262,1356.23,0.00021917,2]
[315904890,1709260704406,500.0,0.00021917,2]
[315904891,1709260705545,439.24770787,0.00021917,2]
[315904892,1709260705808,500.0,0.00021917,2]
[315904893,1709260706268,617.05,0.00021917,2]
[315904894,1709260707457,500.0,0.00021917,2]
[315904895,1709260708995,1689.91,0.00021917,2]
[315904896,1709260709179,500.0,0.00021917,2]
[315904897,1709260712958,500.0,0.00021917,2]
[315904898,1709260713333,500.0,0.00021917,2]
[315904899,1709260714333,500.0,0.00021917,2]
[315904900,1709260714608,1398.4,0.00021917,2]
[315904901,1709260716365,796.45,0.00021917,2]
[315904902,1709260717272,1116.6,0.00021917,2]
[315904903,1709260718321,501.27000662,0.00022099,2]
[315904904,1709260718458,500.0,0.00021917,2]
[315904905,1709260718728,500.0,0.00021917,2]
[315904906,1709260720256,660.78,0.00021917,2]
[315904907,1709260723169,439.24770787,0.00021917,2]
[315904908,1709260723200,500.0,0.00021917,2]
[315904909,1709260723424,500.0,0.00021917,2]
[315904910,1709260724443,518.26,0.00021917,2]
[315904911,1709260725274,1650.35,0.00021917,2]
[315904912,1709260726620,500.0,0.00021917,2]
[315904913,1709260726663,500.0,0.00021917,2]
[315904914,1709260727474,500.0,0.00021917,2]
[315904915,1709260727512,514.78,0.00021917,2]
[315904916,1709260729120,7496.31,0.00021917,2]
[315904917,1709260732208,500.0,0.00021917,2]
[315904918,1709260732431,5237.54,0.00021917,2]
[315904919,1709260733281,500.0,0.00021917,2]
[315904920,1709260734612,1243.47,0.00021917,2]
[315904921,1709260736208,500.0,0.00021917,2]
[315904922,1709260736405,20442.75,0.00021917,2]
[315904923,1709260738794,1000.0,0.000217,2]
[315904924,1709260739825,500.0,0.00021917,2]
[315904925,1709260742393,500.0,0.00021917,2]
[315904926,1709260742861,954.6556,0.0002157,2]
[315904927,1709260743162,439.24770787,0.00021917,2]
[315904928,1709260743239,334.18000441,0.00022099,2]
[315904929,1709260743474,55555.0,0.00022091,2]
[315904930,1709260744819,3132.95,0.00021917,2]
[315904931,1709260745082,5000.0,0.000217,2]
[315904932,1709260746697,1326.93,0.00021917,2]
[315904933,1709260747040,500.0,0.00021917,2]
[315904934,1709260747972,5023.75,0.00021917,2]
[315904935,1709260748063,1046.75,0.00021917,2]
[315904936,1709260748386,500.0,0.00021917,2]
[315904937,1709260748452,222.78666961,0.00022099,2]
[315904938,1709260748732,500.0,0.00021917,2]
[315904939,1709260750169,520.72,0.00021917,2]
[315904940,1709260751820,-500.0,0.00021917,2]
[315904941,1709260751843,-12000.0,0.00022107,2]
[315904942,1709260751866,-12000.0,0.00022107,2]
[315904943,1709260751894,-800.0,0.0002211,2]
[315904944,1709260751920,-12000.0,0.00022111,2]
[315904945,1709260751944,-9947.76,0.00022113,2]
[315904946,1709260751969,-12000.0,0.00022117,2]
[315904947,1709260751993,-12000.0,0.00022118,2]
[315904948,1709260752017,-12000.0,0.00022118,2]
[315904949,1709260752041,-234.03590935,0.00022119,2]
[315904950,1709260752065,-363.90797229,0.00022119,2]
[315904951,1709260752091,-242.44907008,0.00022119,4]
[315904952,1709260752115,-165.26604895,0.00022119,2]
[315904953,1709260752143,-9191.58,0.0002212,2]
[315904954,1709260752166,-12000.0,0.00022121,2]
[315904955,1709260752189,-12000.0,0.00022121,2]
[315904956,1709260752214,-12000.0,0.00022121,2]
[315904957,1709260752237,-12000.0,0.00022123,2]
[315904958,1709260752260,-12000.0,0.00022123,2]
[315904959,1709260752287,-12000.0,0.00022124,2]
[315904960,1709260752311,-12000.0,0.00022124,2]
[315904961,1709260752333,-12000.0,0.00022124,2]
[315904962,1709260752355,-12000.0,0.00022125,2]
[315904963,1709260752377,-12000.0,0.00022126,2]
[315904964,1709260752401,-12000.0,0.00022126,2]
[315904965,1709260752424,-12000.0,0.00022127,2]
[315904966,1709260752446,-12000.0,0.00022127,2]
[315904967,1709260752469,-12000.0,0.00022128,2]
[315904968,1709260752492,-12000.0,0.00022128,2]
[315904969,1709260752514,-12000.0,0.00022128,2]
[315904970,1709260752536,-12000.0,0.00022129,2]
[315904971,1709260752558,-12000.0,0.00022129,2]
[315904972,1709260752587,-12000.0,0.0002213,2]
[315904973,1709260752609,-12000.0,0.0002213,2]
[315904974,1709260752631,-12000.0,0.0002213,2]
[315904975,1709260752656,-12000.0,0.00022132,2]
[315904976,1709260752678,-12000.0,0.00022133,2]
[315904977,1709260752701,-12000.0,0.00022134,2]
[315904978,1709260752723,-12000.0,0.00022134,2]
[315904979,1709260752745,-12000.0,0.00022135,2]
[315904980,1709260752770,-12000.0,0.00022135,2]
[315904981,1709260752798,-12000.0,0.00022135,2]
[315904982,1709260752822,-12000.0,0.00022136,2]
[315904983,1709260752846,-12000.0,0.00022138,2]
[315904984,1709260752870,-12000.0,0.00022138,2]
[315904985,1709260752899,-12465.99368389,0.0002214,2]
[315904986,1709260752924,-12000.0,0.00022141,2]
[315904987,1709260752947,-12000.0,0.00022142,2]
[315904988,1709260752971,-12000.0,0.00022142,2]
[315904989,1709260752994,-12000.0,0.00022143,2]
[315904990,1709260753018,-12000.0,0.00022146,2]
[315904991,1709260753042,-12000.0,0.00022146,2]
[315904992,1709260753066,-12000.0,0.00022146,2]
[315904993,1709260753088,-12000.0,0.00022146,2]
[315904994,1709260753112,-12000.0,0.00022147,2]
[315904995,1709260753137,-12000.0,0.00022147,2]
[315904996,1709260753161,-12000.0,0.00022148,2]
[315904997,1709260753184,-12000.0,0.00022148,2]
[315904998,1709260753211,-12000.0,0.00022152,2]
[315904999,1709260753237,-12000.0,0.00022153,2]
[315905000,1709260753260,-12000.0,0.00022154,2]
[315905001,1709260753282,-12000.0,0.00022155,2]
[315905002,1709260753306,-12000.0,0.00022155,2]
[315905003,1709260753430,-12000.0,0.00022156,2]
[315905004,1709260753454,-160.15,0.00022161,2]
[315905005,1709260753477,-154.36,0.00022176,2]
[315905006,1709260753498,-2261.309525,0.0002219,2]
[315905007,1709260753522,-781042.71037831,0.00022191,4]
[315905008,1709260753545,-500.0,0.00022191,2]
[315905009,1709260753567,-1407.41,0.00022191,2]
[315905010,1709260753590,-500.0,0.00022191,2]
[315905011,1709260753612,-500.0,0.00022191,2]
[315905012,1709260753638,-500.0,0.00022191,2]
[315905013,1709260753659,-500.0,0.00022191,2]
[315905014,1709260753681,-500.0,0.00022191,2]
[315905015,1709260753704,-500.0,0.00022191,2]
[315905016,1709260753726,-500.0,0.00022191,2]
[315905017,1709260753747,-500.0,0.00022191,2]
[315905018,1709260753769,-500.0,0.00022191,2]
[315905019,1709260753790,-500.0,0.00022191,2]
[315905020,1709260753811,-500.0,0.00022191,2]
[315905021,1709260753833,-500.0,0.00022191,2]
[315905022,1709260753855,-500.0,0.00022191,2]
[315905023,1709260753876,-500.0,0.00022191,2]
[315905024,1709260753898,-500.0,0.00022191,2]
[315905025,1709260753920,-645.64468835,0.00022191,2]
[315905026,1709260753942,-500.0,0.00022191,2]
[315905027,1709260753963,-500.0,0.00022191,2]
[315905028,1709260753985,-500.0,0.00022191,2]
[315905029,1709260754007,-500.0,0.00022191,2]
[315905030,1709260754029,-510.0722403,0.00022191,2]
[315905031,1709260754051,-500.0,0.00022191,2]
[315905032,1709260754073,-500.0,0.00022191,2]
[315905033,1709260754094,-500.0,0.00022191,2]
[315905034,1709260754115,-1009.88,0.00022191,2]
[315905035,1709260754136,-666.81,0.00022191,2]
[315905036,1709260754158,-500.0,0.00022191,2]
[315905037,1709260754179,-500.0,0.00022191,2]
[315905038,1709260754201,-500.0,0.00022191,2]
[315905039,1709260754225,-500.0,0.00022191,2]
[315905040,1709260754248,-500.0,0.00022191,2]
[315905041,1709260754270,-500.0,0.00022191,2]
[315905042,1709260754291,-500.0,0.00022191,2]
[315905043,1709260754314,-578.84333372,0.00022191,2]
[315905044,1709260754335,-506.4714573,0.00022191,2]
[315905045,1709260754356,-482.82545678,0.00022191,2]
[315905046,1709260754377,-500.0,0.00022191,2]
[315905047,1709260754399,-500.0,0.00022191,2]
[315905048,1709260754422,-500.0,0.00022191,2]
[315905049,1709260754445,-500.0,0.00022191,2]
[315905050,1709260754467,-500.0,0.00022191,2]
[315905051,1709260754489,-500.0,0.00022191,2]
[315905052,1709260754511,-500.0,0.00022191,2]
[315905053,1709260754532,-500.0,0.00022191,2]
[315905054,1709260754554,-500.0,0.00022191,2]
[315905055,1709260754576,-500.0,0.00022191,2]
[315905056,1709260754598,-500.0,0.00022191,2]
[315905057,1709260754619,-1569.21,0.00022191,2]
[315905058,1709260754642,-500.0,0.00022191,2]
[315905059,1709260754664,-500.0,0.00022191,2]
[315905060,1709260754685,-721.28,0.00022191,2]
[315905061,1709260754707,-500.0,0.00022191,2]
[315905062,1709260754729,-500.0,0.00022191,2]
[315905063,1709260754751,-500.0,0.00022191,2]
[315905064,1709260754774,-500.0,0.00022191,2]
[315905065,1709260754796,-500.0,0.00022191,2]
[315905066,1709260754817,-704.17,0.00022191,2]
[315905067,1709260754838,-500.0,0.00022191,2]
[315905068,1709260754859,-1066.59,0.00022191,2]
[315905069,1709260754880,-500.0,0.00022191,2]
[315905070,1709260754904,-500.0,0.00022191,2]
[315905071,1709260754926,-500.0,0.00022191,2]
[315905072,1709260754949,-500.0,0.00022191,2]
[315905073,1709260754971,-500.0,0.00022191,2]
[315905074,1709260754993,-744.66,0.00022191,2]
[315905075,1709260755015,-500.0,0.00022191,2]
[315905076,1709260755036,-617.41,0.00022191,2]
[315905077,1709260755057,-500.0,0.00022191,2]
[315905078,1709260755079,-237.47361302,0.00022191,2]
[315905079,1709260755103,-500.0,0.00022191,2]
[315905080,1709260755124,-500.0,0.00022191,2]
[315905081,1709260755147,-500.0,0.00022191,2]
[315905082,1709260755169,-500.0,0.00022191,2]
[315905083,1709260755191,-429.02563677,0.00022191,2]
[315905084,1709260755213,-605.24,0.00022191,2]
[315905085,1709260755237,-382.78020775,0.00022191,2]
[315905086,1709260755259,-500.0,0.00022191,2]
[315905087,1709260755282,-500.0,0.00022191,2]
[315905088,1709260755304,-500.0,0.00022191,2]
[315905089,1709260755326,-500.0,0.00022191,2]
[315905090,1709260755347,-500.0,0.00022191,2]
[315905091,1709260755368,-500.0,0.00022191,2]
[315905092,1709260755390,-500.0,0.00022191,2]
[315905093,1709260755412,-500.0,0.00022191,2]
[315905094,1709260755433,-500.0,0.00022191,2]
[315905095,1709260755456,-500.0,0.00022191,2]
[315905096,1709260755477,-500.0,0.00022191,2]
[315905097,1709260755499,-500.0,0.00022191,2]
[315905098,1709260755521,-500.0,0.00022191,2]